lending/lending_fUSD_20250218
["ID","MTS","AMOUNT","RATE_DAILY","PERIOD"]
[353457109,1739848241290,-150.0,0.00013117,2]
[353457110,1739848241305,-150.0,0.00013135,2]
[353457111,1739848241316,-150.0,0.00013152,2]
[353457112,1739848241328,-150.0,0.00013159,2]
[353457113,1739848241340,-150.0,0.00013168,2]
[353457114,1739848241352,-150.0,0.00013169,2]
[353457115,1739848241364,-150.0,0.00013174,2]
[353457116,1739848241375,-911.73,0.00013177,2]
[353457117,1739848241387,-150.0,0.00013187,2]
[353457118,1739848241399,-1000.0,0.000132,2]
[353457119,1739848241412,-2100.0,0.000132,4]
[353457120,1739848241424,-150.0,0.00013204,2]
[353457121,1739848241437,-150.0,0.00013221,2]
[353457122,1739848241449,-150.0,0.00013236,2]
[353457123,1739848241461,-150.0,0.00013239,2]
[353457124,1739848241473,-150.0,0.0001324,2]
[353457125,1739848241486,-150.0,0.00013256,2]
[353457126,1739848241497,-150.0,0.00013273,2]
[353457127,1739848241509,-150.0,0.00013291,2]
[353457128,1739848241521,-150.0,0.00013298,2]
[353457129,1739848241532,-3200.0,0.000133,4]
[353457130,1739848241544,-150.0,0.00013308,2]
[353457131,1739848241555,-150.0,0.00013311,2]
[353457132,1739848241567,-433.02016736,0.00013316,3]
[353457133,1739848241578,-151.331674,0.00013318,2]
[353457134,1739848241590,-289.504816,0.00013318,2]
[353457135,1739848241601,-151.0,0.00013318,2]
[353457136,1739848241615,-151.0,0.00013318,2]
[353457137,1739848241628,-151.0,0.00013318,2]
[353457138,1739848241639,-2031.594,0.00013318,2]
[353457139,1739848241652,-1277.228,0.00013318,2]
[353457140,1739848241664,-150.202,0.00013318,2]
[353457141,1739848241676,-639.685,0.00013318,2]
[353457142,1739848241688,-570.487,0.00013318,2]
[353457143,1739848241700,-1791.774,0.00013318,2]
[353457144,1739848241711,-910.794,0.00013318,2]
[353457145,1739848241723,-1269.623,0.00013318,2]
[353457146,1739848241737,-2963.54,0.00013318,2]
[353457147,1739848241748,-786.0,0.00013318,2]
[353457148,1739848241760,-540.194,0.00013318,2]
[353457149,1739848241771,-4040.84,0.00013318,2]
[353457150,1739848241782,-150.0,0.00013325,2]
[353457151,1739848241794,-150.0,0.00013329,2]
[353457152,1739848241806,-150.0,0.00013342,2]
[353457153,1739848241818,-150.0,0.0001336,2]
[353457154,1739848241830,-150.0,0.00013361,2]
[353457155,1739848241841,-150.0,0.00013377,2]
[353457156,1739848241853,-150.0,0.00013383,2]
[353457157,1739848241864,-150.0,0.00013394,2]
[353457158,1739848241876,-151.0,0.000134,2]
[353457159,1739848241887,-4300.0,0.000134,4]
[353457160,1739848241899,-150.0,0.00013412,2]
[353457161,1739848241910,-150.0,0.00013423,2]
[353457162,1739848241922,-228.8598926,0.00013424,2]
[353457163,1739848241933,-150.0,0.00013429,2]
[353457164,1739848241944,-150.0,0.00013446,2]
[353457165,1739848241956,-150.0,0.00013455,2]
[353457166,1739848241968,-150.0,0.00013464,2]
[353457167,1739848241979,-150.0,0.00013481,2]
[353457168,1739848241991,-150.0,0.00013485,2]
[353457169,1739848242003,-661.0,0.00013494,2]
[353457170,1739848242015,-1405.67525456,0.00013495,2]
[353457171,1739848242026,-150.0,0.00013498,2]
[353457172,1739848242038,-10330.329161,0.000135,2]
[353457173,1739848242050,-5400.0,0.000135,4]
[353457174,1739848242062,-1955.0,0.000135,2]
[353457175,1739848242074,-150.0,0.000135,2]
[353457176,1739848242085,-150.0,0.00013515,2]
[353457177,1739848242097,-150.0,0.00013527,2]
[353457178,1739848242109,-150.0,0.00013533,2]
[353457179,1739848242122,-150.0,0.00013547,2]
[353457180,1739848242134,-150.0,0.0001355,2]
[353457181,1739848242146,-150.0,0.00013567,2]
[353457182,1739848242158,-150.0,0.00013585,2]
[353457183,1739848242167,-883.07426547,0.00013598,2]
[353457184,1739848242179,-150.0,0.00013599,2]
[353457185,1739848242189,-1000.0,0.000136,3]
[353457186,1739848242415,-2002.54,0.000136,3]
[353457187,1739848242440,-1000.0,0.000136,4]
[353457188,1739848242453,-150.0,0.00013602,2]
[353457189,1739848242462,-150.0,0.00013609,2]
[353457190,1739848242471,-1000.0,0.00013613,2]
[353457192,1739848242482,-150.0,0.00013619,2]
[353457193,1739848242491,-150.0,0.00013637,2]
[353457194,1739848242500,-150.0,0.00013654,2]
[353457195,1739848242510,-1175.71739968,0.00013663,10]
[353457196,1739848242519,-151.0,0.00013671,2]
[353457197,1739848242528,-190.0,0.00013671,2]
[353457198,1739848242537,-266.74191828,0.00013671,2]
[353457199,1739848242547,-155.5097465,0.00013671,2]
[353457200,1739848242557,-159.58783542,0.00013671,2]
[353457201,1739848242566,-151.12187154,0.00013671,2]
[353457202,1739848242575,-500.0,0.00013673,2]
[353457204,1739848242584,-212.0933661,0.00013688,2]
[353457205,1739848242593,-160.5868756,0.00013688,2]
[353457207,1739848242603,-288.8646491,0.00013688,2]
[353457210,1739848242612,-188.08752309,0.00013688,2]
[353457213,1739848242622,-482.6430566,0.00013688,2]
[353457215,1739848242631,-170.7323364,0.00013689,2]
[353457218,1739848242640,-180.8777972,0.00013689,2]
[353457219,1739848242649,-191.023258,0.00013689,2]
[353457220,1739848242659,-303.3208818,0.00013689,2]
[353457221,1739848242667,-317.7771144,0.00013689,2]
[353457222,1739848242676,-332.2333471,0.00013689,2]
[353457223,1739848242686,-500.0,0.00013697,2]
[353457224,1739848242695,-357.66164311,0.00013697,2]
[353457225,1739848242704,-151.0,0.00013697,2]
[353457226,1739848242713,-206.0,0.00013697,2]
[353457227,1739848242723,-1547.80454077,0.00013698,2]
[353457228,1739848242732,-6301838.95307081,0.00013698,5]
[353457245,1739848243553,-477.76,0.00013698,5]
[353457246,1739848243564,-737.50533136,0.00013698,5]
[353457247,1739848243645,-2004.69357214,0.00013698,5]
[353457248,1739848243656,-508.00324188,0.00013698,5]
[353457249,1739848243668,-738.9608181,0.00013698,5]
[353457250,1739848244072,-2305.68935329,0.00013698,5]
[353457251,1739848244090,-397280.40309345,0.00013698,5]
[353457252,1739848244138,-19426.06274937,0.00013698,5]
[353457253,1739848244149,-7326.51620416,0.00013698,5]
[353457254,1739848244161,-195980.53429381,0.00013698,5]
[353457255,1739848244173,-182171.98144177,0.00013698,5]
[353457262,1739848245711,-151.0,0.00013318,2]
[353457263,1739848245721,-151.0,0.00013671,2]
[353457264,1739848245730,-95174.34545528,0.00013698,5]
[353457265,1739848245808,-811.41003,0.00013698,5]
[353457266,1739848245967,-658.63300375,0.00013698,5]
[353457274,1739849293634,514.6332317,0.0002,120]
[353457312,1739849431850,-150.0,9.999e-05,2]
[353457314,1739849431860,-50355.0,0.0001,2]
[353457318,1739849432118,-966798.69536959,0.0001,2]
[353457407,1739849437801,-651.58908075,0.0001,2]
[353457417,1739849437902,-610.22697178,0.0001,2]
[353457419,1739849437913,-273.65584272,0.0001,2]
[353457421,1739849437924,-450.61731138,0.0001,2]
[353457426,1739849437960,-8661.20091581,0.0001,2]
[353457427,1739849437971,-1463.58,0.0001,2]
[353457428,1739849437981,-2052.40387248,0.0001,2]
[353457429,1739849437993,-1704.75408117,0.0001,2]
[353457430,1739849438021,-75202.59961879,0.0001,2]
[353457440,1739849438207,-886.16936274,0.0001,2]
[353457442,1739849438218,-582.27999921,0.0001,2]
[353457444,1739849438229,-594.53024969,0.0001,2]
[353457446,1739849438241,-1911.57,0.0001,2]
[353457621,1739849439963,-339.53908731,0.0001,2]
[353457623,1739849439974,-1399.79399091,0.0001,2]
[353457626,1739849439994,-1053.91278966,0.0001,2]
[353457628,1739849440005,-535.02444576,0.0001,2]
[353457637,1739849440082,-574.72339879,0.0001,2]
[353457639,1739849440094,-1032.6890508,0.0001,2]
[353457642,1739849440105,-5645.59999995,0.0001,2]
[353457644,1739849440116,-216134.56092877,0.0001,2]
[353457653,1739849440191,-2856.93372,0.0001,2]
[353457655,1739849440202,-2256.50655973,0.0001,2]
[353457661,1739849440246,-7058.49446848,0.0001,2]
[353457663,1739849440257,-4702.1225,0.0001,2]
[353457665,1739849440269,-1728.77262585,0.0001,2]
[353457667,1739849440281,-1925.36,0.0001,2]
[353457670,1739849440292,-29544.9128524,0.0001,2]
[353457672,1739849440301,-173.12152659,0.0001,2]
[353457674,1739849440311,-700.70452094,0.0001,2]
[353457676,1739849440328,-912.05951907,0.0001,2]
[353457962,1739849443136,-452.74010106,0.0001,2]
[353457964,1739849443226,-284.74638608,0.0001,2]
[353457975,1739849443340,-397280.40309345,0.0001,2]
[353458200,1739849445933,-80771.26998515,0.0001,2]
[353458201,1739849445989,-162864.10285968,0.0001,2]
[353458202,1739849446000,-384.75850322,0.0001,2]
[353458203,1739849446010,-505.46,0.0001,2]
[353458204,1739849446020,-164.66,0.00010137,2]
[353458205,1739849446030,-150.0,0.00010325,2]
[353458206,1739849446039,-209.53718002,0.000109,2]
[353458207,1739849446048,-773.14,0.00010917,2]
[353458208,1739849446057,-200.0,0.00010999,2]
[353458209,1739849446067,-200.0,0.00010999,2]
[353458210,1739849446077,-200.0,0.00010999,2]
[353458211,1739849446086,-150.0,0.00011,2]
[353458212,1739849446096,-228.66643431,0.00011179,2]
[353458213,1739849446106,-500.0,0.00011656,2]
[353458214,1739849446115,-250.0,0.00011739,2]
[353458215,1739849446124,-199.83,0.00011754,2]
[353458216,1739849446134,-150.0,0.00011824,2]
[353458217,1739849446143,-1000.0,0.0001186,2]
[353458218,1739849446152,-300.0,0.0001189,2]
[353458219,1739849446161,-666.61,0.00012013,2]
[353458220,1739849446170,-1166.56,0.00012045,2]
[353458221,1739849446178,-200.0,0.00012067,2]
[353458222,1739849446187,-8448.9,0.00012077,2]
[353458223,1739849446196,-501.86,0.00012079,2]
[353458224,1739849446206,-1500.0,0.00012079,2]
[353458225,1739849446215,-23900.0,0.00012091,2]
[353458226,1739849446225,-13991.91,0.00012152,2]
[353458227,1739849446234,-2000.0,0.00012208,2]
[353458228,1739849446246,-500.0,0.00012213,2]
[353458229,1739849446255,-150.0,0.00012304,2]
[353458230,1739849446264,-150.0,0.00012304,2]
[353458231,1739849446273,-150.0,0.00012304,2]
[353458232,1739849446283,-150.0,0.00012304,2]
[353458233,1739849446293,-159.811569,0.0001233,3]
[353458234,1739849446303,-150.0,0.00012338,2]
[353458235,1739849446312,-150.0,0.00012372,2]
[353458236,1739849446322,-150.0,0.00012407,2]
[353458237,1739849446332,-150.0,0.00012428,2]
[353458238,1739849446342,-150.0,0.00012441,2]
[353458239,1739849446352,-150.0,0.00012441,2]
[353458240,1739849446361,-150.0,0.00012475,2]
[353458241,1739849446371,-150.0,0.00012509,2]
[353458242,1739849446380,-150.0,0.00012543,2]
[353458243,1739849446390,-150.0,0.00012553,2]
[353458244,1739849446399,-178.44,0.0001256,2]
[353458245,1739849446409,-150.0,0.00012578,2]
[353458246,1739849446419,-150.0,0.00012578,2]
[353458247,1739849446429,-150.0,0.00012578,2]
[353458248,1739849446439,-150.0,0.00012612,2]
[353458249,1739849446448,-150.0,0.00012646,2]
[353458250,1739849446458,-150.0,0.00012677,2]
[353458251,1739849446468,-150.0,0.0001268,2]
[353458252,1739849446477,-150.0,0.00012714,2]
[353458253,1739849446487,-150.0,0.00012714,2]
[353458254,1739849446499,-150.0,0.00012748,2]
[353458255,1739849446509,-150.0,0.00012783,2]
[353458256,1739849446518,-150.0,0.00012801,2]
[353458257,1739849446528,-150.0,0.00012817,2]
[353458258,1739849446538,-150.0,0.00012851,2]
[353458259,1739849446547,-150.0,0.00012851,2]
[353458260,1739849446556,-150.0,0.00012851,2]
[353458261,1739849446567,-150.0,0.00012885,2]
[353458262,1739849446577,-150.0,0.00012919,2]
[353458263,1739849446586,-159.811569,0.0001292,2]
[353458264,1739849446594,-150.0,0.00012926,2]
[353458265,1739849446606,-150.0,0.00012953,2]
[353458266,1739849446614,-150.0,0.00012988,2]
[353458267,1739849446624,-150.0,0.00012988,2]
[353458268,1739849446633,-150.0,0.00013022,2]
[353458269,1739849446643,-150.0,0.0001305,2]
[353458270,1739849446653,-150.0,0.00013056,2]
[353458271,1739849446663,-150.0,0.0001309,2]
[353458272,1739849446672,-150.0,0.00013124,2]
[353458273,1739849446682,-150.0,0.00013124,2]
[353458274,1739849446692,-150.0,0.00013124,2]
[353458275,1739849446702,-150.0,0.00013159,2]
[353458276,1739849446711,-150.0,0.00013174,2]
[353458277,1739849446721,-773.14,0.00013181,2]
[353458278,1739849446730,-150.0,0.00013193,2]
[353458279,1739849446741,-150.0,0.00013227,2]
[353458280,1739849446750,-150.0,0.00013261,2]
[353458281,1739849446760,-150.0,0.00013261,2]
[353458282,1739849446769,-150.0,0.00013295,2]
[353458283,1739849446778,-150.0,0.00013298,2]
[353458284,1739849446787,-1787.0,0.00013318,2]
[353458285,1739849446796,-1266.0,0.00013318,2]
[353458286,1739849446806,-2957.0,0.00013318,2]
[353458287,1739849446815,-908.0,0.00013318,2]
[353458288,1739849446824,-783.0,0.00013318,2]
[353458289,1739849446833,-539.0,0.00013318,2]
[353458290,1739849446842,-1110.0,0.00013318,2]
[353458291,1739849446851,-501.955,0.00013318,2]
[353458292,1739849446861,-3917.0,0.00013318,2]
[353458293,1739849446872,-150.0,0.00013318,2]
[353458294,1739849446881,-2026.0,0.00013318,2]
[353458295,1739849446890,-1274.0,0.00013318,2]
[353458296,1739849446900,-150.0,0.00013329,2]
[353458297,1739849446909,-1000.0,0.00013342,2]
[353458298,1739849446919,-150.0,0.00013364,2]
[353458299,1739849446929,-150.0,0.00013398,2]
[353458300,1739849446939,-150.0,0.00013398,2]
[353458301,1739849446949,-150.0,0.00013398,2]
[353458302,1739849446959,-150.0,0.00013423,2]
[353458303,1739849446968,-324.8414398,0.00013424,2]
[353458304,1739849446979,-150.0,0.00013432,2]
[353458305,1739849446988,-433.47,0.00013452,2]
[353458306,1739849446998,-150.0,0.00013466,2]
[353458307,1739849447007,-150.0,0.00013469,2]
[353458308,1739849447017,-150.0,0.00013488,2]
[353458309,1739849447027,-1911.0,0.000135,2]
[353458310,1739849447036,-150.0,0.000135,2]
[353458311,1739849447046,-666.61,0.00013514,2]
[353458312,1739849447055,-150.0,0.0001352,2]
[353458313,1739849447065,-150.0,0.00013526,2]
[353458314,1739849447075,-150.0,0.00013535,2]
[353458315,1739849447084,-150.0,0.00013535,2]
[353458316,1739849447094,-150.0,0.00013547,2]
[353458317,1739849447103,-209.53718002,0.00013567,2]
[353458318,1739849447113,-150.0,0.00013569,2]
[353458319,1739849447122,-2000.0,0.00013588,2]
[353458320,1739849447132,-200.0,0.00013588,2]
[353458321,1739849447142,-179.85363282,0.00013598,2]
[353458322,1739849447152,-569.59013832,0.00013598,2]
[353458323,1739849447162,-62201.18469294,0.00013599,2]
[353458324,1739849447172,-40056.36,0.000136,2]
[353458325,1739849447181,-80939.15030368,0.000136,2]
[353458326,1739849447190,-150.0,0.00013603,2]
[353458327,1739849447200,-150.0,0.00013607,2]
[353458328,1739849447209,-872.53070691,0.00013608,2]
[353458329,1739849447219,-1000.0,0.00013619,2]
[353458330,1739849447228,-150.0,0.00013637,2]
[353458331,1739849447237,-150.0,0.00013646,2]
[353458332,1739849447248,-183.81158503,0.00013647,2]
[353458333,1739849447257,-150.0,0.00013671,2]
[353458334,1739849447267,-150.0,0.00013671,2]
[353458335,1739849447276,-150.0,0.00013671,2]
[353458336,1739849447286,-150.0,0.00013671,2]
[353458337,1739849447295,-412.482899,0.00013688,2]
[353458338,1739849447305,-387.1653255,0.00013688,2]
[353458339,1739849447315,-175.8766028,0.00013688,2]
[353458340,1739849447325,-193.5826626,0.00013688,2]
[353458341,1739849447335,-707.8353932,0.00013688,2]
[353458342,1739849447344,-174.3487372,0.00013689,2]
[353458343,1739849447354,-172.8208716,0.00013689,2]
[353458344,1739849447363,-193.5826626,0.00013689,2]
[353458345,1739849447373,-193.5826626,0.00013689,2]
[353458346,1739849447382,-500.0,0.00013697,2]
[353458347,1739849447391,-740.0,0.00013698,2]
[353458348,1739849447400,-3113.76972723,0.00013698,3]
[353458349,1739849447410,-773.90227038,0.00013698,2]
[353458350,1739849447420,-198807.70398301,0.00013698,3]
[353458351,1739849447433,-19694.309596,0.00013698,3]
[353458352,1739849447450,-3168.93461459,0.00013698,3]
[353458358,1739850269370,20030.77971872,0.00013,20]
[353458370,1739850558748,-150.0,8.836e-05,2]
[353458371,1739850560572,-150.0,8.836e-05,2]
[353458372,1739850562001,-150.0,8.836e-05,2]
[353458373,1739850563187,-150.0,8.836e-05,2]
[353458374,1739850564358,-150.0,8.836e-05,2]
[353458375,1739850565384,-150.0,8.836e-05,2]
[353458411,1739850632059,-1350.6191,8.836e-05,2]
[353458412,1739850632069,-200.0,9.321e-05,2]
[353458413,1739850632079,-200.0,9.684e-05,2]
[353458414,1739850632088,-200.0,9.719e-05,2]
[353458415,1739850632098,-155.63015719,9.807e-05,2]
[353458416,1739850632107,-695.82,9.807e-05,2]
[353458417,1739850632118,-150.0,9.973e-05,2]
[353458418,1739850632128,-550.0,0.0001,2]
[353458419,1739850632138,-150.0,0.00010068,2]
[353458420,1739850632147,-153.53,0.00010137,2]
[353458421,1739850632158,-150.0,0.00011,2]
[353458422,1739850632169,-1000.0,0.00011591,2]
[353458423,1739850632179,-170.21,0.00011755,2]
[353458424,1739850632188,-656.07,0.00011861,2]
[353458425,1739850632198,-300.0,0.00011902,2]
[353458426,1739850632207,-1500.0,0.00011959,2]
[353458427,1739850632217,-600.0,0.00012,2]
[353458428,1739850632227,-695.82,0.00012071,2]
[353458429,1739850632236,-200.0,0.0001208,2]
[353458430,1739850632246,-8116.74194495,0.00012112,2]
[353458431,1739850632279,-15783.25805505,0.00012112,2]
[353458432,1739850632289,-150.0,0.00012304,2]
[353458433,1739850632299,-152.72420686,0.00012304,2]
[353458434,1739850632308,-196.5097352,0.00012304,2]
[353458435,1739850632318,-151.87993698,0.00012304,2]
[353458436,1739850632327,-159.811569,0.0001233,3]
[353458437,1739850632337,-2000.0,0.00012426,2]
[353458438,1739850632347,-2000.0,0.00012674,2]
[353458439,1739850632356,-150.0,0.00012674,2]
[353458440,1739850632365,-150.0,0.00012759,2]
[353458441,1739850632375,-1413.0,0.00013,2]
[353458442,1739850632384,-1000.0,0.00013039,2]
[353458443,1739850632394,-787.04693893,0.000131,2]
[353458444,1739850632412,-212.95306107,0.000131,2]
[353458445,1739850632421,-301.75694579,0.00013318,2]
[353458446,1739850632432,-338.14705421,0.00013318,2]
[353458447,1739850632442,-150.0,0.00013318,2]
[353458448,1739850632451,-570.674,0.00013318,2]
[353458449,1739850632460,-150.683,0.00013318,2]
[353458450,1739850632469,-1008.0,0.00013318,2]
[353458451,1739850632478,-151.44,0.00013318,2]
[353458452,1739850632488,-150.0,0.00013318,2]
[353458454,1739850632497,-150.075,0.00013318,2]
[353458456,1739850632506,-150.0,0.00013318,2]
[353458458,1739850632516,-150.0,0.00013318,2]
[353458460,1739850632525,-216.5609599,0.00013424,2]
[353458462,1739850632535,-155.63015718,0.00013498,2]
[353458464,1739850632544,-1000.0,0.000135,2]
[353458466,1739850632554,-3911.0,0.000135,3]
[353458468,1739850632564,-150.0,0.00013529,2]
[353458470,1739850632573,-163.90988708,0.00013533,2]
[353458471,1739850632583,-151.4679201,0.00013542,2]
[353458473,1739850632592,-4000.0,0.0001356,2]
[353458475,1739850632601,-154.16025672,0.00013598,2]
[353458477,1739850632611,-509.2954215,0.00013688,2]
[353458479,1739850632620,-580.7479878,0.00013688,2]
[353458481,1739850632629,-184.73181266,0.00013697,2]
[353458483,1739850632638,-4634.623,0.00013697,2]
[353458485,1739850632648,-273.445,0.00013697,2]
[353458487,1739850632658,-500.0,0.00013697,2]
[353458489,1739850632668,-1000.0,0.00013697,2]
[353458491,1739850632678,-1000.0,0.00013697,2]
[353458493,1739850632688,-199.65395295,0.00013697,2]
[353458495,1739850632697,-665.0,0.00013698,2]
[353458497,1739850632707,-129764.59371234,0.00013698,2]
[353458500,1739850632716,-568.79776508,0.00013698,2]
[353458502,1739850632726,-190.28647576,0.00013698,2]
[353458503,1739850632736,-232777.59776769,0.00013698,3]
[353458506,1739850632747,-915.47591036,0.00013698,3]
[353458508,1739850632766,-772575.87054819,0.00013698,3]
[353458515,1739850632815,-21655.42482339,0.00013698,3]
[353458517,1739850632826,-1080.97309422,0.00013698,3]
[353458539,1739850638034,-603.0,0.00013698,2]
[353458540,1739850638043,-1779.21299074,0.00013698,3]
[353458541,1739850638053,-386.95113519,0.00013698,2]
[353458542,1739850638062,-4232.29853595,0.00013698,3]
[353458543,1739850638073,-1335.305765,0.00013698,3]
[353458544,1739850638088,-6790.99900856,0.00013698,3]
[353458719,1739850640124,-3559.03613156,0.00013698,3]
[353458737,1739850640283,-1050.21138855,0.00013698,3]
[353458739,1739850640294,-18608.24901673,0.00013698,3]
[353458745,1739850640336,-4775.55,0.00013698,3]
[353458774,1739850640600,-260.51,0.00013698,3]
[353458776,1739850640611,-2038.6,0.00013698,3]
[353459046,1739850643117,-1087.7187716,0.00013424,2]
[353459048,1739850643127,-4462.1812284,0.00013698,3]
[353459050,1739850643139,-1124.999955,0.00013698,3]
[353459054,1739850643170,-53150.80144741,0.00013698,3]
[353459057,1739850643181,-45997.67285535,0.00013698,3]
[353459059,1739850643192,-1050.76466996,0.00013698,3]
[353459063,1739850643222,-715733.46693283,0.00013698,3]
[353459065,1739850643231,-535.0,0.00013698,2]
[353459067,1739850643241,-1357022.54034421,0.00013698,5]
[353459069,1739850643252,-675.424955,0.00013698,5]
[353459073,1739850643277,-2434.15,0.00013698,5]
[353459079,1739850643331,-688.7483796,0.00013698,5]
[353459081,1739850643342,-330.13265643,0.00013698,5]
[353459087,1739850643385,-22873.4975683,0.00013698,5]
[353459089,1739850643397,-260830.70478313,0.00013698,5]
[353459091,1739850643408,-18050.30401162,0.00013698,5]
[353459093,1739850643420,-1443.64072596,0.00013698,5]
[353459103,1739850643500,-1003.11403756,0.00013698,5]
[353459105,1739850643512,-11445.0000006,0.00013698,5]
[353459261,1739850646102,-253.164,0.00013318,2]
[353459262,1739850646112,-150.316,0.00013318,2]
[353459263,1739850646122,-19808.08834,0.00013698,5]
[353459264,1739850646463,-2711.13608082,0.00013698,5]
[353459265,1739850646486,-355.88,0.00013698,5]
[353459266,1739850646505,-2655.68939049,0.00013698,5]
[353459267,1739850646517,-4874.45,0.00013698,5]
[353459320,1739851290865,2399.13717544,0.00020208,120]
[353459321,1739851318113,2253.23897521,0.00020208,120]
[353459558,1739851832267,-565.5527439,8.836e-05,2]
[353459559,1739851832279,-349.6588561,8.836e-05,2]
[353459560,1739851832289,-2387.67606851,8.851e-05,2]
[353459561,1739851832301,-112.32393149,8.851e-05,2]
[353459562,1739851832312,-1475.03190548,9.686e-05,2]
[353459563,1739851832331,-1933.82557355,9.686e-05,2]
[353459564,1739851832378,-565.84729097,9.686e-05,2]
[353459565,1739851832388,-300.0,9.735e-05,2]
[353459566,1739851832398,-200.0,9.736e-05,2]
[353459567,1739851832408,-150.0,9.736e-05,2]
[353459568,1739851832418,-41.16170912,0.0001,2]
[353459569,1739851832543,-508.83829088,0.0001,2]
[353459570,1739851832554,-300.17,0.00010137,2]
[353459571,1739851832563,-626.23,0.00010609,2]
[353459572,1739851832573,-420.0,0.00010709,2]
[353459573,1739851832583,-200.0,0.00010789,2]
[353459574,1739851832592,-587.0,0.0001178,2]
[353459575,1739851832602,-250.0,0.00011844,2]
[353459576,1739851832611,-109.80819926,0.00011983,2]
[353459577,1739851832623,-390.19180074,0.00011983,2]
[353459578,1739851832633,-1000.0,0.00011988,2]
[353459579,1739851832642,-600.0,0.00012,2]
[353459581,1739851832651,-7.90951378,0.00012064,2]
[353459583,1739851832663,-295.63804909,0.00012064,2]
[353459584,1739851832686,-227.06243713,0.00012064,2]
[353459585,1739851832695,-37.68197487,0.00012086,2]
[353459713,1739851838289,-476.81295156,9.736e-05,2]
[353459714,1739851838338,-301.0803199,9.736e-05,2]
[353459715,1739851838395,-5396.37905912,9.736e-05,2]
[353459716,1739851838455,-437.70943335,9.736e-05,2]
[353459717,1739851838467,-376.0213201,9.736e-05,2]
[353459718,1739851838478,-172.16392243,9.736e-05,2]
[353459719,1739851838487,-112.31802513,0.00012086,2]
[353459720,1739851838496,-3106.98619472,0.00012087,2]
[353459904,1739851840443,-377.38617595,8.851e-05,2]
[353459921,1739851840596,-199.70502405,8.851e-05,2]
[353459923,1739851840606,-344.58032396,0.00012087,2]
[353460190,1739851843386,-6548.42348132,0.00012087,2]
[353460191,1739851843396,-9999.99,0.00012087,2]
[353460192,1739851843406,-31649.95,0.00012087,2]
[353460193,1739851843416,-150.99,0.00012087,2]
[353460194,1739851843426,-1317.99,0.00012087,2]
[353460195,1739851843435,-299.99,0.00012087,2]
[353460196,1739851843445,-4318.29,0.00012087,2]
[353460197,1739851843454,-999.99,0.00012087,2]
[353460198,1739851843464,-1519.7,0.00012087,2]
[353460199,1739851843473,-1016.53,0.00012087,2]
[353460200,1739851843483,-150.99,0.00012087,2]
[353460201,1739851843492,-200.0,0.00012164,2]
[353460202,1739851843502,-1500.0,0.0001227,2]
[353460203,1739851843511,-200.0,0.00012453,2]
[353460204,1739851843521,-8732.90108354,0.00012492,2]
[353460205,1739851843543,-15167.09891646,0.00012492,2]
[353460206,1739851843556,-495.63,0.00012591,2]
[353460207,1739851843565,-626.23,0.00012873,2]
[353460208,1739851843575,-3377.93240097,0.00012892,2]
[353460209,1739851843791,-329.76559903,0.00012892,2]
[353460210,1739851843802,-218.756,0.00012892,2]
[353460211,1739851843813,-823.0,0.00012958,2]
[353460212,1739851843822,-300.0,0.000132,4]
[353460213,1739851843832,-700.0,0.000133,4]
[353460214,1739851843841,-1100.0,0.000134,4]
[353460215,1739851843851,-216.5609599,0.00013424,2]
[353460216,1739851843860,-1112.25126971,0.00013424,2]